[Event "Titled Tuesday Blitz April 26 Early 2022"]
[White "Bilych, Olexiy"]
[Black "Pires, Marcos Vinicius Torsani"]
[WhiteFideId "14156504"]
[BlackFideId "2118939"]
[WhiteElo "2176"]
[BlackElo "2273"]
[Result "1-0"]
[Round "01"]
[TimeControl "180+1"]
[Date "2022.04.26"]
[WhiteClock "0:00:49"]
[BlackClock "0:00:15"]

1. e4 {[%clk 0:03:00]}  d5 {[%clk 0:02:59]} 2. exd5 {[%clk 0:02:59]}  Qxd5 {[%clk 0:02:59]} 3. Nc3 {[%clk 0:03:00]}  Qd8 {[%clk 0:03:00]} 4. d4 {[%clk 0:03:00]}  Nf6 {[%clk 0:03:00]} 5. Nf3 {[%clk 0:03:00]}  c6 {[%clk 0:03:01]} 6. Ne5 {[%clk 0:02:56]}  Bf5 {[%clk 0:02:57]} 7. Bc4 {[%clk 0:02:54]}  e6 {[%clk 0:02:56]} 8. g4 {[%clk 0:02:54]}  Be4 {[%clk 0:02:44]} 9. Nxe4 {[%clk 0:02:40]}  Nxe4 {[%clk 0:02:44]} 10. Qf3 {[%clk 0:02:32]}  Nd6 {[%clk 0:02:20]} 11. Bb3 {[%clk 0:02:31]}  Be7 {[%clk 0:02:16]} 12. Bd2 {[%clk 0:02:22]}  O-O {[%clk 0:02:16]} 13. O-O-O {[%clk 0:02:21]}  Nd7 {[%clk 0:02:17]} 14. h4 {[%clk 0:02:18]}  a5 {[%clk 0:02:00]} 15. a3 {[%clk 0:02:13]}  Qc7 {[%clk 0:01:57]} 16. h5 {[%clk 0:02:07]}  Nb5 {[%clk 0:01:50]} 17. Nxd7 {[%clk 0:01:46]}  Qxd7 {[%clk 0:01:49]} 18. Be3 {[%clk 0:01:46]}  a4 {[%clk 0:01:46]} 19. Ba2 {[%clk 0:01:45]}  Bxa3 {[%clk 0:01:13]} 20. bxa3 {[%clk 0:01:44]}  Nc3 {[%clk 0:01:13]} 21. Bc4 {[%clk 0:01:39]}  Qd6 {[%clk 0:01:07]} 22. Kb2 {[%clk 0:01:25]}  Nxd1+ {[%clk 0:01:06]} 23. Rxd1 {[%clk 0:01:26]}  b5 {[%clk 0:01:07]} 24. Bd3 {[%clk 0:01:24]}  b4 {[%clk 0:01:03]} 25. h6 {[%clk 0:01:23]}  Rfb8 {[%clk 0:00:52]} 26. Qe4 {[%clk 0:01:03]}  bxa3+ {[%clk 0:00:48]} 27. Ka1 {[%clk 0:01:02]}  g6 {[%clk 0:00:25]} 28. Qe5 {[%clk 0:01:02]}  Qf8 {[%clk 0:00:19]} 29. d5 {[%clk 0:00:52]}  Ra5 {[%clk 0:00:15]} 30. Bd4 {[%clk 0:00:49]}  f6 {[%clk 0:00:16]} 31. Qxe6+ {[%clk 0:00:49]}  Kh8 {[%clk 0:00:15]} 32. Bxf6+ {[%clk 0:00:49]} 1-0


[Site "https://www.chess.com"]

[Event "Titled Tuesday Blitz April 26 Early 2022"]
[White "Brodowski, Piotr"]
[Black "Pham, Tran Gia Phuc"]
[WhiteFideId "1124480"]
[BlackFideId "12415669"]
[WhiteElo "2422"]
[BlackElo "1789"]
[Result "0-1"]
[Round "01"]
[TimeControl "180+1"]
[Date "2022.04.26"]
[WhiteClock "0:00:10"]
[BlackClock "0:00:19"]

1. e4 {[%clk 0:02:57]}  c5 {[%clk 0:02:59]} 2. Nf3 {[%clk 0:02:55]}  d6 {[%clk 0:02:51]} 3. d4 {[%clk 0:02:54]}  cxd4 {[%clk 0:02:50]} 4. Nxd4 {[%clk 0:02:54]}  Nf6 {[%clk 0:02:50]} 5. Nc3 {[%clk 0:02:53]}  a6 {[%clk 0:02:51]} 6. a3 {[%clk 0:02:53]}  b5 {[%clk 0:02:50]} 7. Bg5 {[%clk 0:02:40]}  e6 {[%clk 0:02:48]} 8. f4 {[%clk 0:02:26]}  Be7 {[%clk 0:02:45]} 9. Qf3 {[%clk 0:02:16]}  Bb7 {[%clk 0:02:45]} 10. O-O-O {[%clk 0:02:16]}  Nbd7 {[%clk 0:02:44]} 11. g4 {[%clk 0:02:10]}  Qc7 {[%clk 0:02:43]} 12. Bg2 {[%clk 0:01:57]}  h6 {[%clk 0:02:42]} 13. h4 {[%clk 0:01:21]}  O-O-O {[%clk 0:02:36]} 14. Bxf6 {[%clk 0:01:19]}  Bxf6 {[%clk 0:02:34]} 15. Ndxb5 {[%clk 0:01:06]}  axb5 {[%clk 0:02:30]} 16. Nxb5 {[%clk 0:01:05]}  Qb6 {[%clk 0:02:11]} 17. Nxd6+ {[%clk 0:00:44]}  Kb8 {[%clk 0:02:09]} 18. c3 {[%clk 0:00:44]}  Nc5 {[%clk 0:02:07]} 19. Nxb7 {[%clk 0:00:37]}  Qxb7 {[%clk 0:02:03]} 20. e5 {[%clk 0:00:26]}  Qxf3 {[%clk 0:02:02]} 21. Bxf3 {[%clk 0:00:27]}  Be7 {[%clk 0:01:56]} 22. b4 {[%clk 0:00:16]}  Nd3+ {[%clk 0:01:55]} 23. Kc2 {[%clk 0:00:16]}  Nxf4 {[%clk 0:01:55]} 24. a4 {[%clk 0:00:15]}  Rxd1 {[%clk 0:01:53]} 25. Rxd1 {[%clk 0:00:14]}  Bxh4 {[%clk 0:01:53]} 26. Rd7 {[%clk 0:00:14]}  f6 {[%clk 0:01:43]} 27. a5 {[%clk 0:00:13]}  fxe5 {[%clk 0:01:35]} 28. a6 {[%clk 0:00:13]}  Nd5 {[%clk 0:01:18]} 29. Rb7+ {[%clk 0:00:13]}  Ka8 {[%clk 0:01:16]} 30. c4 {[%clk 0:00:11]}  Rf8 {[%clk 0:01:10]} 31. Be4 {[%clk 0:00:02]}  Rf4 {[%clk 0:01:09]} 32. cxd5 {[%clk 0:00:02]}  Rxe4 {[%clk 0:01:09]} 33. dxe6 {[%clk 0:00:02]}  Rc4+ {[%clk 0:01:08]} 34. Kb3 {[%clk 0:00:02]}  Rc8 {[%clk 0:01:08]} 35. b5 {[%clk 0:00:02]}  Rb8 {[%clk 0:01:04]} 36. e7 {[%clk 0:00:01]}  Re8 {[%clk 0:01:03]} 37. b6 {[%clk 0:00:01]}  Rxe7 {[%clk 0:01:02]} 38. Rxe7 {[%clk 0:00:02]}  Bxe7 {[%clk 0:01:02]} 39. Kc4 {[%clk 0:00:02]}  Bg5 {[%clk 0:00:58]} 40. Kd5 {[%clk 0:00:02]}  Be3 {[%clk 0:00:57]} 41. b7+ {[%clk 0:00:02]}  Ka7 {[%clk 0:00:56]} 42. Kxe5 {[%clk 0:00:03]}  Bg5 {[%clk 0:00:56]} 43. Kf5 {[%clk 0:00:03]}  Bf6 {[%clk 0:00:56]} 44. Kg6 {[%clk 0:00:03]}  Be5 {[%clk 0:00:56]} 45. Kh7 {[%clk 0:00:02]}  Kb8 {[%clk 0:00:42]} 46. Kg6 {[%clk 0:00:02]}  Bf6 {[%clk 0:00:41]} 47. Kf7 {[%clk 0:00:01]}  Kc7 {[%clk 0:00:41]} 48. Kg6 {[%clk 0:00:02]}  Kb8 {[%clk 0:00:33]} 49. Kh7 {[%clk 0:00:02]}  Be5 {[%clk 0:00:30]} 50. Kg6 {[%clk 0:00:03]}  Ka7 {[%clk 0:00:30]} 51. Kh7 {[%clk 0:00:03]}  Kxa6 {[%clk 0:00:16]} 52. b8=Q {[%clk 0:00:03]}  Bxb8 {[%clk 0:00:16]} 53. Kxg7 {[%clk 0:00:04]}  Bf4 {[%clk 0:00:16]} 54. Kg6 {[%clk 0:00:05]}  Kb5 {[%clk 0:00:17]} 55. Kh5 {[%clk 0:00:05]}  Bg5 {[%clk 0:00:17]} 56. Kg6 {[%clk 0:00:05]}  Kc4 {[%clk 0:00:17]} 57. Kf5 {[%clk 0:00:05]}  Kd5 {[%clk 0:00:17]} 58. Kg6 {[%clk 0:00:05]}  Ke4 {[%clk 0:00:17]} 59. Kh5 {[%clk 0:00:04]}  Kf4 {[%clk 0:00:17]} 60. Kg6 {[%clk 0:00:04]}  Kxg4 {[%clk 0:00:17]} 61. Kf7 {[%clk 0:00:05]}  h5 {[%clk 0:00:18]} 62. Ke6 {[%clk 0:00:06]}  h4 {[%clk 0:00:18]} 63. Kd5 {[%clk 0:00:07]}  h3 {[%clk 0:00:19]} 64. Ke4 {[%clk 0:00:08]}  h2 {[%clk 0:00:19]} 65. Kd3 {[%clk 0:00:09]}  h1=Q {[%clk 0:00:19]} 66. Ke2 {[%clk 0:00:10]} 0-1


[Site "https://www.chess.com"]

[Event "Titled Tuesday Blitz April 26 Early 2022"]
[White "Chigaev, Maksim"]
[Black "Lamaze, Simon"]
[WhiteFideId "4108116"]
[BlackFideId "36069264"]
[WhiteElo "2478"]
[BlackElo "1999"]
[Result "1-0"]
[Round "01"]
[TimeControl "180+1"]
[Date "2022.04.26"]
[WhiteClock "0:00:56"]
[BlackClock "0:01:25"]

1. d4 {[%clk 0:03:00]}  Nf6 {[%clk 0:02:58]} 2. c4 {[%clk 0:02:59]}  e6 {[%clk 0:02:58]} 3. Nf3 {[%clk 0:02:59]}  b6 {[%clk 0:02:58]} 4. g3 {[%clk 0:02:59]}  Ba6 {[%clk 0:02:58]} 5. b3 {[%clk 0:02:58]}  Bb4+ {[%clk 0:02:57]} 6. Bd2 {[%clk 0:02:54]}  Be7 {[%clk 0:02:57]} 7. Nc3 {[%clk 0:02:52]}  d5 {[%clk 0:02:57]} 8. Bg2 {[%clk 0:02:51]}  O-O {[%clk 0:02:57]} 9. O-O {[%clk 0:02:47]}  Re8 {[%clk 0:02:49]} 10. Ne5 {[%clk 0:02:42]}  Bb7 {[%clk 0:02:48]} 11. Bf4 {[%clk 0:02:35]}  a6 {[%clk 0:02:16]} 12. Rc1 {[%clk 0:02:22]}  Nbd7 {[%clk 0:02:15]} 13. Qc2 {[%clk 0:02:13]}  Rc8 {[%clk 0:02:12]} 14. Rfd1 {[%clk 0:02:12]}  c5 {[%clk 0:02:08]} 15. cxd5 {[%clk 0:02:07]}  exd5 {[%clk 0:02:06]} 16. Nxd7 {[%clk 0:01:30]}  Qxd7 {[%clk 0:02:05]} 17. dxc5 {[%clk 0:01:16]}  Bxc5 {[%clk 0:02:05]} 18. Qd3 {[%clk 0:01:14]}  Rcd8 {[%clk 0:01:56]} 19. Na4 {[%clk 0:01:09]}  Ne4 {[%clk 0:01:26]} 20. Bxe4 {[%clk 0:00:59]}  Rxe4 {[%clk 0:01:24]} 21. Rxc5 {[%clk 0:00:56]}  bxc5 {[%clk 0:01:25]} 22. Nxc5 {[%clk 0:00:56]} 1-0


[Site "https://www.chess.com"]

[Event "Titled Tuesday Blitz April 26 Early 2022"]
[White "Chojnacki, Slawomir"]
[Black "Martinez Alcantara, Jose Eduardo"]
[WhiteFideId "1117076"]
[BlackFideId "3805662"]
[WhiteElo "2084"]
[BlackElo "2690"]
[Result "0-1"]
[Round "01"]
[TimeControl "180+1"]
[Date "2022.04.26"]
[WhiteClock "0:00:45"]
[BlackClock "0:00:27"]

1. d4 {[%clk 0:02:58]}  Nf6 {[%clk 0:02:59]} 2. Nf3 {[%clk 0:02:59]}  e6 {[%clk 0:02:59]} 3. c3 {[%clk 0:02:59]}  b6 {[%clk 0:02:58]} 4. Bg5 {[%clk 0:02:59]}  Bb7 {[%clk 0:02:58]} 5. Nbd2 {[%clk 0:03:00]}  Be7 {[%clk 0:02:58]} 6. Qc2 {[%clk 0:02:59]}  c5 {[%clk 0:02:53]} 7. e3 {[%clk 0:02:59]}  d6 {[%clk 0:02:50]} 8. Bb5+ {[%clk 0:02:56]}  Nbd7 {[%clk 0:02:50]} 9. Qa4 {[%clk 0:02:55]}  a6 {[%clk 0:02:39]} 10. Bxd7+ {[%clk 0:02:44]}  Qxd7 {[%clk 0:02:40]} 11. Qxd7+ {[%clk 0:02:43]}  Nxd7 {[%clk 0:02:41]} 12. Bxe7 {[%clk 0:02:43]}  Kxe7 {[%clk 0:02:42]} 13. O-O {[%clk 0:02:43]}  Rac8 {[%clk 0:02:39]} 14. Rfd1 {[%clk 0:02:38]}  Rc7 {[%clk 0:02:22]} 15. Ng5 {[%clk 0:02:38]}  Nf6 {[%clk 0:02:19]} 16. f3 {[%clk 0:02:35]}  Rd8 {[%clk 0:02:08]} 17. Nge4 {[%clk 0:02:33]}  Nd5 {[%clk 0:02:08]} 18. Kf2 {[%clk 0:02:32]}  f5 {[%clk 0:02:08]} 19. Ng3 {[%clk 0:02:28]}  cxd4 {[%clk 0:02:04]} 20. exd4 {[%clk 0:02:26]}  Nf4 {[%clk 0:02:04]} 21. Ndf1 {[%clk 0:02:21]}  g5 {[%clk 0:02:00]} 22. Ne2 {[%clk 0:02:20]}  Ng6 {[%clk 0:01:53]} 23. Re1 {[%clk 0:02:17]}  Kf6 {[%clk 0:01:53]} 24. Rad1 {[%clk 0:02:12]}  h5 {[%clk 0:01:52]} 25. g3 {[%clk 0:02:10]}  h4 {[%clk 0:01:51]} 26. f4 {[%clk 0:02:08]}  hxg3+ {[%clk 0:01:50]} 27. hxg3 {[%clk 0:02:07]}  g4 {[%clk 0:01:50]} 28. Nd2 {[%clk 0:01:58]}  Rh8 {[%clk 0:01:48]} 29. Ke3 {[%clk 0:01:58]}  Rh2 {[%clk 0:01:43]} 30. Rg1 {[%clk 0:01:56]}  Re7 {[%clk 0:01:38]} 31. Nf1 {[%clk 0:01:55]}  Rh8 {[%clk 0:01:30]} 32. Kd2 {[%clk 0:01:55]}  Bf3 {[%clk 0:01:27]} 33. Re1 {[%clk 0:01:54]}  e5 {[%clk 0:01:27]} 34. fxe5+ {[%clk 0:01:46]}  dxe5 {[%clk 0:01:28]} 35. Ne3 {[%clk 0:01:43]}  Rd8 {[%clk 0:01:24]} 36. Rgf1 {[%clk 0:01:37]}  Kg5 {[%clk 0:01:19]} 37. Rf2 {[%clk 0:01:36]}  f4 {[%clk 0:01:11]} 38. gxf4+ {[%clk 0:01:25]}  exf4 {[%clk 0:01:12]} 39. Rxf3 {[%clk 0:01:22]}  gxf3 {[%clk 0:01:10]} 40. Rg1+ {[%clk 0:01:22]}  Kf6 {[%clk 0:00:52]} 41. Ng4+ {[%clk 0:01:15]}  Kg7 {[%clk 0:00:51]} 42. Nc1 {[%clk 0:01:14]}  Rd5 {[%clk 0:00:46]} 43. Rf1 {[%clk 0:01:09]}  Rg5 {[%clk 0:00:45]} 44. Nf2 {[%clk 0:01:10]}  Rg2 {[%clk 0:00:43]} 45. Kd3 {[%clk 0:01:01]}  Nh4 {[%clk 0:00:43]} 46. Nb3 {[%clk 0:00:56]}  Re3+ {[%clk 0:00:41]} 47. Kc4 {[%clk 0:00:56]}  Nf5 {[%clk 0:00:40]} 48. Nd1 {[%clk 0:00:54]}  Ng3 {[%clk 0:00:25]} 49. Nxe3 {[%clk 0:00:53]}  fxe3 {[%clk 0:00:26]} 50. Rxf3 {[%clk 0:00:50]}  e2 {[%clk 0:00:27]} 51. Nc1 {[%clk 0:00:46]}  e1=Q {[%clk 0:00:26]} 52. Nd3 {[%clk 0:00:47]}  Qe6+ {[%clk 0:00:26]} 53. d5 {[%clk 0:00:47]}  Qe4+ {[%clk 0:00:25]} 54. Kb3 {[%clk 0:00:46]}  Qxd5+ {[%clk 0:00:26]} 55. Ka3 {[%clk 0:00:45]}  Qxf3 {[%clk 0:00:27]} 0-1


[Site "https://www.chess.com"]

[Event "Titled Tuesday Blitz April 26 Early 2022"]
[White "Ciorgovean, Iustin"]
[Black "Bongo Akanga Ndjila, Barthelemy"]
[WhiteFideId "1242911"]
[BlackFideId "10609431"]
[WhiteElo "2075"]
[BlackElo "1768"]
[Result "1-0"]
[Round "01"]
[TimeControl "180+1"]
[Date "2022.04.26"]
[WhiteClock "0:01:08"]
[BlackClock "0:01:13"]

1. d4 {[%clk 0:03:00]}  Nf6 {[%clk 0:02:58]} 2. c4 {[%clk 0:03:00]}  b6 {[%clk 0:02:57]} 3. Nc3 {[%clk 0:02:56]}  Bb7 {[%clk 0:02:57]} 4. Qc2 {[%clk 0:02:57]}  e6 {[%clk 0:02:56]} 5. e4 {[%clk 0:02:55]}  Bb4 {[%clk 0:02:54]} 6. Bd3 {[%clk 0:02:56]}  d5 {[%clk 0:02:53]} 7. cxd5 {[%clk 0:02:49]}  exd5 {[%clk 0:02:52]} 8. e5 {[%clk 0:02:50]}  Ne4 {[%clk 0:02:51]} 9. Ne2 {[%clk 0:02:49]}  Qh4 {[%clk 0:02:28]} 10. O-O {[%clk 0:02:41]}  Bxc3 {[%clk 0:02:26]} 11. bxc3 {[%clk 0:02:39]}  O-O {[%clk 0:02:23]} 12. f3 {[%clk 0:02:28]}  Ng5 {[%clk 0:02:07]} 13. Ng3 {[%clk 0:01:59]}  g6 {[%clk 0:01:58]} 14. f4 {[%clk 0:01:55]}  Ne6 {[%clk 0:01:56]} 15. Rb1 {[%clk 0:01:26]}  c5 {[%clk 0:01:52]} 16. Be3 {[%clk 0:01:22]}  Nd7 {[%clk 0:01:51]} 17. Qf2 {[%clk 0:01:17]}  cxd4 {[%clk 0:01:50]} 18. cxd4 {[%clk 0:01:17]}  Rac8 {[%clk 0:01:46]} 19. f5 {[%clk 0:01:15]}  Ng5 {[%clk 0:01:26]} 20. f6 {[%clk 0:01:10]}  Ne4 {[%clk 0:01:25]} 21. Nxe4 {[%clk 0:01:09]}  dxe4 {[%clk 0:01:25]} 22. Qxh4 {[%clk 0:01:09]}  exd3 {[%clk 0:01:15]} 23. Qh6 {[%clk 0:01:08]}  Rfe8 {[%clk 0:01:13]} 24. Qg7# {[%clk 0:01:08]} 1-0


[Site "https://www.chess.com"]

[Event "Titled Tuesday Blitz April 26 Early 2022"]
[White "Csonka, Balazs"]
[Black "Manukian, Artak"]
[WhiteFideId "742910"]
[BlackFideId "13301373"]
[WhiteElo "2404"]
[BlackElo "2325"]
[Result "1-0"]
[Round "01"]
[TimeControl "180+1"]
[Date "2022.04.26"]
[WhiteClock "0:00:46"]
[BlackClock "0:01:32"]

1. d4 {[%clk 0:02:59]}  d5 {[%clk 0:02:58]} 2. c4 {[%clk 0:02:57]}  dxc4 {[%clk 0:02:56]} 3. Nf3 {[%clk 0:02:57]}  Nf6 {[%clk 0:02:56]} 4. Nc3 {[%clk 0:02:57]}  c6 {[%clk 0:02:48]} 5. a4 {[%clk 0:02:55]}  Bf5 {[%clk 0:02:48]} 6. e3 {[%clk 0:02:53]}  Bd3 {[%clk 0:02:47]} 7. Bxd3 {[%clk 0:02:52]}  cxd3 {[%clk 0:02:48]} 8. Qxd3 {[%clk 0:02:51]}  e6 {[%clk 0:02:48]} 9. O-O {[%clk 0:02:51]}  a5 {[%clk 0:02:47]} 10. e4 {[%clk 0:02:49]}  Na6 {[%clk 0:02:47]} 11. Rd1 {[%clk 0:02:09]}  Nb4 {[%clk 0:02:48]} 12. Qe2 {[%clk 0:02:08]}  Be7 {[%clk 0:02:41]} 13. h4 {[%clk 0:02:00]}  O-O {[%clk 0:02:34]} 14. e5 {[%clk 0:01:57]}  Nfd5 {[%clk 0:02:33]} 15. h5 {[%clk 0:01:57]}  h6 {[%clk 0:02:24]} 16. Ne4 {[%clk 0:01:55]}  Qd7 {[%clk 0:02:12]} 17. Ra3 {[%clk 0:01:39]}  b5 {[%clk 0:02:06]} 18. Nh2 {[%clk 0:01:31]}  bxa4 {[%clk 0:02:01]} 19. Rg3 {[%clk 0:01:21]}  Kh8 {[%clk 0:02:01]} 20. Ng4 {[%clk 0:01:16]}  Rg8 {[%clk 0:01:53]} 21. Qf3 {[%clk 0:00:50]}  Bf8 {[%clk 0:01:49]} 22. Bxh6 {[%clk 0:00:45]}  gxh6 {[%clk 0:01:42]} 23. Ngf6 {[%clk 0:00:45]}  Rxg3 {[%clk 0:01:39]} 24. Qxg3 {[%clk 0:00:45]}  Nxf6 {[%clk 0:01:32]} 25. Nxf6 {[%clk 0:00:46]} 1-0


[Site "https://www.chess.com"]

[Event "Titled Tuesday Blitz April 26 Early 2022"]
[White "Deac, Bogdan-Daniel"]
[Black "Urbina Perez, Juan Antonio"]
[WhiteFideId "1226380"]
[BlackFideId "2217368"]
[WhiteElo "2648"]
[BlackElo "2192"]
[Result "1-0"]
[Round "01"]
[TimeControl "180+1"]
[Date "2022.04.26"]
[WhiteClock "0:01:36"]
[BlackClock "0:02:06"]

1. d4 {[%clk 0:03:00]}  d5 {[%clk 0:02:58]} 2. Nf3 {[%clk 0:03:00]}  c6 {[%clk 0:02:57]} 3. c4 {[%clk 0:03:00]}  Nf6 {[%clk 0:02:56]} 4. Nc3 {[%clk 0:03:01]}  a6 {[%clk 0:02:55]} 5. e3 {[%clk 0:02:59]}  Bf5 {[%clk 0:02:55]} 6. Ne5 {[%clk 0:02:54]}  h6 {[%clk 0:02:45]} 7. Qb3 {[%clk 0:02:46]}  Ra7 {[%clk 0:02:42]} 8. cxd5 {[%clk 0:02:43]}  cxd5 {[%clk 0:02:41]} 9. Bd2 {[%clk 0:02:40]}  e6 {[%clk 0:02:32]} 10. Rc1 {[%clk 0:02:17]}  Bd6 {[%clk 0:02:30]} 11. Qa4+ {[%clk 0:02:14]}  Nbd7 {[%clk 0:02:27]} 12. Nb5 {[%clk 0:02:11]}  Bb8 {[%clk 0:02:09]} 13. Nxa7 {[%clk 0:01:58]}  Bxa7 {[%clk 0:02:10]} 14. Nxd7 {[%clk 0:01:55]}  Nxd7 {[%clk 0:02:07]} 15. Bb5 {[%clk 0:01:54]}  Bb6 {[%clk 0:02:05]} 16. Bxd7+ {[%clk 0:01:36]}  Qxd7 {[%clk 0:02:06]} 17. Rc8+ {[%clk 0:01:36]} 1-0


[Site "https://www.chess.com"]

[Event "Titled Tuesday Blitz April 26 Early 2022"]
[White "Demin, Vladimir"]
[Black "Jaracz, Pawel"]
[WhiteFideId "4167457"]
[BlackFideId "1102222"]
[WhiteElo "2361"]
[BlackElo "2429"]
[Result "1-0"]
[Round "01"]
[TimeControl "180+1"]
[Date "2022.04.26"]
[WhiteClock "0:00:11"]
[BlackClock "0:00:14"]

1. e4 {[%clk 0:02:58]}  c5 {[%clk 0:02:46]} 2. Nf3 {[%clk 0:02:55]}  e6 {[%clk 0:02:44]} 3. c3 {[%clk 0:02:55]}  Nf6 {[%clk 0:02:41]} 4. e5 {[%clk 0:02:55]}  Nd5 {[%clk 0:02:40]} 5. d4 {[%clk 0:02:56]}  cxd4 {[%clk 0:02:35]} 6. Qxd4 {[%clk 0:02:53]}  Nc6 {[%clk 0:02:33]} 7. Qe4 {[%clk 0:02:49]}  d6 {[%clk 0:02:29]} 8. Bb5 {[%clk 0:02:47]}  Bd7 {[%clk 0:02:25]} 9. c4 {[%clk 0:02:42]}  Nb6 {[%clk 0:02:19]} 10. exd6 {[%clk 0:02:37]}  Bxd6 {[%clk 0:02:17]} 11. O-O {[%clk 0:02:35]}  O-O {[%clk 0:02:16]} 12. Rd1 {[%clk 0:02:30]}  Qc7 {[%clk 0:02:08]} 13. Be3 {[%clk 0:02:24]}  f5 {[%clk 0:01:31]} 14. Qd3 {[%clk 0:02:12]}  Nb4 {[%clk 0:01:27]} 15. Qxd6 {[%clk 0:01:52]}  Qxd6 {[%clk 0:01:25]} 16. Rxd6 {[%clk 0:01:53]}  Bxb5 {[%clk 0:01:26]} 17. Na3 {[%clk 0:01:33]}  Bc6 {[%clk 0:01:14]} 18. Ne5 {[%clk 0:01:27]}  Na4 {[%clk 0:00:57]} 19. b3 {[%clk 0:01:08]}  Nc3 {[%clk 0:00:56]} 20. Rxe6 {[%clk 0:01:02]}  Rfe8 {[%clk 0:00:50]} 21. Rxe8+ {[%clk 0:00:50]}  Rxe8 {[%clk 0:00:49]} 22. Nxc6 {[%clk 0:00:49]}  Nxc6 {[%clk 0:00:49]} 23. Nb5 {[%clk 0:00:41]}  Nxb5 {[%clk 0:00:42]} 24. cxb5 {[%clk 0:00:42]}  Nb4 {[%clk 0:00:41]} 25. Bxa7 {[%clk 0:00:36]}  Re2 {[%clk 0:00:36]} 26. a4 {[%clk 0:00:32]}  Rb2 {[%clk 0:00:36]} 27. Bc5 {[%clk 0:00:26]}  Nd3 {[%clk 0:00:33]} 28. Bd4 {[%clk 0:00:25]}  Rxb3 {[%clk 0:00:32]} 29. g3 {[%clk 0:00:25]}  f4 {[%clk 0:00:30]} 30. Kg2 {[%clk 0:00:24]}  f3+ {[%clk 0:00:26]} 31. Kxf3 {[%clk 0:00:18]}  Ne5+ {[%clk 0:00:16]} 32. Ke4 {[%clk 0:00:18]}  Nc4 {[%clk 0:00:16]} 33. Kd5 {[%clk 0:00:12]}  Na5 {[%clk 0:00:15]} 34. Bb6 {[%clk 0:00:11]}  Rd3+ {[%clk 0:00:15]} 35. Ke4 {[%clk 0:00:11]}  Nb3 {[%clk 0:00:16]} 36. Kxd3 {[%clk 0:00:11]}  Nxa1 {[%clk 0:00:15]} 37. Kc3 {[%clk 0:00:11]}  Kf7 {[%clk 0:00:14]} 38. Kb2 {[%clk 0:00:11]} 1-0


[Site "https://www.chess.com"]

[Event "Titled Tuesday Blitz April 26 Early 2022"]
[White "Djokic, Mihailo"]
[Black "Gatterer, Florian"]
[WhiteFideId "976440"]
[BlackFideId "811688"]
[WhiteElo "2202"]
[BlackElo "2218"]
[Result "1-0"]
[Round "01"]
[TimeControl "180+1"]
[Date "2022.04.26"]
[WhiteClock "0:00:06"]
[BlackClock "0:00:03"]

1. e4 {[%clk 0:03:00]}  d6 {[%clk 0:02:58]} 2. d4 {[%clk 0:03:00]}  Nf6 {[%clk 0:02:58]} 3. Nc3 {[%clk 0:03:01]}  g6 {[%clk 0:02:58]} 4. f4 {[%clk 0:03:01]}  Bg7 {[%clk 0:02:58]} 5. Nf3 {[%clk 0:03:02]}  O-O {[%clk 0:02:58]} 6. e5 {[%clk 0:03:02]}  dxe5 {[%clk 0:02:58]} 7. fxe5 {[%clk 0:03:01]}  Nd5 {[%clk 0:02:57]} 8. Bc4 {[%clk 0:03:01]}  Nxc3 {[%clk 0:02:53]} 9. bxc3 {[%clk 0:03:00]}  c5 {[%clk 0:02:52]} 10. Be3 {[%clk 0:02:57]}  Nc6 {[%clk 0:02:47]} 11. O-O {[%clk 0:02:53]}  Bg4 {[%clk 0:02:44]} 12. h3 {[%clk 0:02:33]}  Bxf3 {[%clk 0:02:36]} 13. Rxf3 {[%clk 0:02:33]}  cxd4 {[%clk 0:02:33]} 14. cxd4 {[%clk 0:02:32]}  e6 {[%clk 0:02:29]} 15. c3 {[%clk 0:02:18]}  Rc8 {[%clk 0:02:28]} 16. Bd3 {[%clk 0:01:33]}  Qa5 {[%clk 0:02:11]} 17. Qb3 {[%clk 0:01:29]}  Ne7 {[%clk 0:02:05]} 18. c4 {[%clk 0:01:20]}  Qc7 {[%clk 0:01:50]} 19. Raf1 {[%clk 0:01:12]}  Nf5 {[%clk 0:01:46]} 20. Bf2 {[%clk 0:01:04]}  Rcd8 {[%clk 0:01:38]} 21. Bxf5 {[%clk 0:01:00]}  exf5 {[%clk 0:01:37]} 22. Re1 {[%clk 0:00:56]}  Rfe8 {[%clk 0:01:30]} 23. Rd1 {[%clk 0:00:35]}  b6 {[%clk 0:01:27]} 24. a4 {[%clk 0:00:34]}  Qd7 {[%clk 0:01:19]} 25. Rfd3 {[%clk 0:00:33]}  Qc7 {[%clk 0:01:13]} 26. R1d2 {[%clk 0:00:30]}  Rc8 {[%clk 0:01:13]} 27. Rc2 {[%clk 0:00:30]}  Red8 {[%clk 0:01:13]} 28. Rdc3 {[%clk 0:00:22]}  Qd7 {[%clk 0:01:05]} 29. c5 {[%clk 0:00:19]}  bxc5 {[%clk 0:00:43]} 30. Rxc5 {[%clk 0:00:20]}  Rb8 {[%clk 0:00:44]} 31. Qa2 {[%clk 0:00:18]}  f4 {[%clk 0:00:44]} 32. Rc7 {[%clk 0:00:17]}  Qf5 {[%clk 0:00:43]} 33. Rc1 {[%clk 0:00:07]}  a5 {[%clk 0:00:36]} 34. Qc2 {[%clk 0:00:05]}  Qe6 {[%clk 0:00:30]} 35. Qc4 {[%clk 0:00:04]}  Qf5 {[%clk 0:00:30]} 36. Qc2 {[%clk 0:00:05]}  Qe6 {[%clk 0:00:29]} 37. Rc5 {[%clk 0:00:05]}  f3 {[%clk 0:00:27]} 38. g4 {[%clk 0:00:04]}  h5 {[%clk 0:00:25]} 39. Qe4 {[%clk 0:00:04]}  Rb3 {[%clk 0:00:17]} 40. R5c3 {[%clk 0:00:03]}  Rdb8 {[%clk 0:00:17]} 41. Qxf3 {[%clk 0:00:02]}  hxg4 {[%clk 0:00:15]} 42. hxg4 {[%clk 0:00:02]}  Rb1 {[%clk 0:00:15]} 43. Rxb1 {[%clk 0:00:02]}  Rxb1+ {[%clk 0:00:15]} 44. Kg2 {[%clk 0:00:03]}  Qa2 {[%clk 0:00:15]} 45. Ra3 {[%clk 0:00:02]}  Qc4 {[%clk 0:00:14]} 46. Rc3 {[%clk 0:00:01]}  Qa2 {[%clk 0:00:12]} 47. Rc8+ {[%clk 0:00:02]}  Kh7 {[%clk 0:00:11]} 48. Qh3+ {[%clk 0:00:02]}  Bh6 {[%clk 0:00:11]} 49. g5 {[%clk 0:00:03]}  Qd5+ {[%clk 0:00:08]} 50. Qf3 {[%clk 0:00:03]}  Qxf3+ {[%clk 0:00:03]} 51. Kxf3 {[%clk 0:00:04]}  Bxg5 {[%clk 0:00:03]} 52. Rc7 {[%clk 0:00:04]}  Kh6 {[%clk 0:00:03]} 53. Rxf7 {[%clk 0:00:04]}  Rb3+ {[%clk 0:00:03]} 54. Ke4 {[%clk 0:00:04]}  Ra3 {[%clk 0:00:03]} 55. e6 {[%clk 0:00:04]}  Rxa4 {[%clk 0:00:03]} 56. e7 {[%clk 0:00:05]}  Bxe7 {[%clk 0:00:03]} 57. Rxe7 {[%clk 0:00:06]}  Ra2 {[%clk 0:00:03]} 58. Be3+ {[%clk 0:00:06]} 1-0


[Site "https://www.chess.com"]